{"text_format":"1","workbook":"xlsx","n_sheets":5,"sheets":["ДСП","Фасады","Столешницы","Фурнитура","Спецификация"],"not_rendered":{"charts":0,"images":0,"macros":1,"external_links":0,"defined_names":4,"comments":0,"pivot_tables":0},"unopened":[],"bounds":{"document_bytes":16777216,"sheet_cells":100000,"rows_first":2000,"rows_last":500,"rows_between":2000,"halvings":0,"cell_chars":16384,"cell_head_chars":4096},"cells_cut":0,"cells_raw":0,"read":"whole","date_system":"1900"}

{"sheet":"ДСП","index":0,"n_rows":18,"n_cols":7,"rows_kept":18,"cut":false,"hidden":false,"merged":[[154,3,154,6],[1,0,1,6]]}
[]
["ПРАЙС на ДСП"]
["№","Наименование","Производитель","м2","Цена за м2","Стоимость","Выбор +"]
[1,"ДСП кухня","Egger (Австрия)16 мм",{"$f":"C153+C155","v":0},1700,{"$f":"D4*E4","v":0},"+"]
[2,"ДСП кухня","Kronospan (Россия)16 мм",{"$f":"C153+C155","v":0},1700,0,"+"]
[3,"ДСП кухня","Lamarty (Польша)16 мм",{"$f":"C153+C155","v":0},1700,0,"+"]
[4,"ДСП кухня","Шексна  (Россия) 16 мм",{"$f":"C153","v":0},1500,0,"+"]
[5,"ДСП кухня","Монза Россия 16 мм",{"$f":"C153+C155","v":0},1500,0,"+"]
[6,"ДСП","Egger       (Австрия )16 мм",0,1300,0]
[7,"ДСП","Kronospan (Россия) 16 мм",0,1250,0]
[8,"ДСП","Lamarty (Польша) 16 мм",0,1250,0]
[9,"ДСП","Шексна (Россия)16 мм",0,1200,0]
[10,"ДСП","Монза     (Россия) 16 мм",0,1200,0]
[11,"ДСП","Egger Австрия 32 мм",0,1700,0]
[12,"ДСП","Kronospan (Россия) 32 мм",0,1700,0]
[13,"ДСП","Lamarty (Польша )32 мм",0,1700,0]
[14,"ДСП","Шексна (Россия) 32 мм",0,1500,0]
[15,"ДСП","Монза     (Россия) 32 мм",0,1500,0]

{"sheet":"Фасады","index":1,"n_rows":60,"n_cols":7,"rows_kept":60,"cut":false,"hidden":false,"merged":[[1,0,1,6]]}
[]
["Прайс на фасады и материалы"]
["№","Наименование","Производитель","м2","Цена за м2","Стоимость","Выбор +"]
[1,"Фасад МДФ пленка","ЭКМИ Россия матовая",0,3000,{"$f":"Фасады!$D4*Фасады!$E4","v":0}]
[2,"Фасад МДФ пленка","ЭКМИ Россия глянцевая",0,3500,{"$f":"Фасады!$D5*Фасады!$E5","v":0}]
[3,"Фасад МДФ пленка","ЭКМИ Россия металлик",5,4000,{"$f":"Фасады!$D6*Фасады!$E6","v":20000},"+"]
[4,"Фасад МДФ пленка","Италия",1,5000,{"$f":"Фасады!$D7*Фасады!$E7","v":5000},"+"]
[5,"Фасад МДФ эмаль","ORACAL Италия матовая",0,5000,{"$f":"Фасады!$D8*Фасады!$E8","v":0},"+"]
[6,"Фасад МДФ эмаль","ORACAL Италия глянцевая",0,5500,{"$f":"Фасады!$D9*Фасады!$E9","v":0},"+"]
[7,"Фасад МДФ эмаль","ORACAL Италия металлик",0,5500,{"$f":"Фасады!$D10*Фасады!$E10","v":0},"+"]
[8,"Фасад МДФ пластик в ПВХ кромке","ARPA Италия матовый",0,6000,{"$f":"Фасады!$D11*Фасады!$E11","v":0},"+"]
[9,"Фасад МДФ пластик в ПВХ кромке","ARPA Италия глянец",0,6500,{"$f":"Фасады!$D12*Фасады!$E12","v":0}]
[10,"Фасад МДФ пластик в алюмин.рамке","ARPA Италия матовый",0,6000,{"$f":"Фасады!$D13*Фасады!$E13","v":0}]
[11,"Фасад МДФ пластик в ПВХ кромке","ARPA Италия глянец",0,6500,{"$f":"Фасады!$D14*Фасады!$E14","v":0}]
[12,"Фасад рамочный ","AGT Турция",0,3500,{"$f":"Фасады!$D15*Фасады!$E15","v":0}]
[13,"Фасад рамочный ","Россия",0,3000,{"$f":"Фасады!$D16*Фасады!$E16","v":0}]
[14,"Фасад UY в ПВХ кромке","AGT Турция",0,5500,{"$f":"Фасады!$D17*Фасады!$E17","v":0}]
[15,"Фасад UY в алюмин.рамке","AGT Турция",0,6000,{"$f":"Фасады!$D18*Фасады!$E18","v":0}]
[16,"Фасад ЛДСП в ПВХ кромке","Россия",0,1800,{"$f":"Фасады!$D19*Фасады!$E19","v":0}]
[17,"Фасад ЛДСП в алюмин.рамке","Россия",0,2000,{"$f":"Фасады!$D20*Фасады!$E20","v":0}]
[18,"Фасад алюминиевый под стекло(+)","Россия",0.4,6000,{"$f":"Фасады!$D21*Фасады!$E21","v":2400}]
[19,null,null,0,null,{"$f":"Фасады!$D22*Фасады!$E22","v":0}]
[20,"Фасад гнутый пленка ","ЭКМИ Россия матовая",0,3000,{"$f":"Фасады!$D23*Фасады!$E23","v":0}]
[21,"Фасад гнутый пленка ","ЭКМИ Россия глянцевая",0,3500,{"$f":"Фасады!$D24*Фасады!$E24","v":0}]
[22,"Фасад гнутый пленка ","ЭКМИ Россия металлик",0,4000,{"$f":"Фасады!$D25*Фасады!$E25","v":0}]
[23,"Фасад гнутый эмаль ","ORACAL Италия матовая",0,5000,{"$f":"Фасады!$D26*Фасады!$E26","v":0}]
[24,"Фасад гнутый эмаль ","ORACAL Италия глянцевая",0,5500,{"$f":"Фасады!$D27*Фасады!$E27","v":0}]
[25,"Фасад гнутый эмаль ","ORACAL Италия металлик",0,5500,{"$f":"Фасады!$D28*Фасады!$E28","v":0}]
[26,"Фасад гнутый пластик в ПВХ ","ARPA Италия матовый",0,6000,{"$f":"Фасады!$D29*Фасады!$E29","v":0}]
[27,"Фасад гнутый пластик в ПВХ ","ARPA Италия глянец",0,6500,{"$f":"Фасады!$D30*Фасады!$E30","v":0}]
[28,"Фотопечать","каталог",0,null,{"$f":"Фасады!$D31*Фасады!$E31","v":0}]
[29,"Зеркало","серебро",0,null,{"$f":"Фасады!$D32*Фасады!$E32","v":0}]
[30,"Зеркало","бронза",0,null,{"$f":"Фасады!$D33*Фасады!$E33","v":0}]
[31,"Зеркало","сатин",0,null,{"$f":"Фасады!$D34*Фасады!$E34","v":0}]
[32,"Зеркало","пескоструй",0,null,{"$f":"Фасады!$D35*Фасады!$E35","v":0}]
[33,"Зеркало",null,0,null,{"$f":"Фасады!$D36*Фасады!$E36","v":0}]
[34,"Стекло","крашенное",0,null,{"$f":"Фасады!$D37*Фасады!$E37","v":0}]
[35,"Стекло","пескоструй",0,null,{"$f":"Фасады!$D38*Фасады!$E38","v":0}]
[36,"Стекло","тонированное",0,null,{"$f":"Фасады!$D39*Фасады!$E39","v":0}]
[37,"Стекло","бцв.обычное",0,null,{"$f":"Фасады!$D40*Фасады!$E40","v":0}]
[38,"Стекло","каталог",0,null,{"$f":"Фасады!$D41*Фасады!$E41","v":0}]
[39,"Искуственная кожа",null,0,null,{"$f":"Фасады!$D42*Фасады!$E42","v":0}]
[40,"Пластики ","Siby",0,null,{"$f":"Фасады!$D43*Фасады!$E43","v":0}]
[41,"Метакриловое стекло",null,0,null,{"$f":"Фасады!$D44*Фасады!$E44","v":0}]
[42,"Ротанг",null,0,null,{"$f":"Фасады!$D45*Фасады!$E45","v":0}]
[43,"Бамбук",null,0,null,{"$f":"Фасады!$D46*Фасады!$E46","v":0}]
[44,"Триплекс",null,0,null,{"$f":"Фасады!$D47*Фасады!$E47","v":0}]
[45,null,null,0,null,{"$f":"Фасады!$D48*Фасады!$E48","v":0}]
[46,null,null,0,null,{"$f":"Фасады!$D49*Фасады!$E49","v":0}]
[47,null,null,0,null,{"$f":"Фасады!$D50*Фасады!$E50","v":0}]
[48,null,null,0,null,{"$f":"Фасады!$D51*Фасады!$E51","v":0}]
[49,null,null,0,null,{"$f":"Фасады!$D52*Фасады!$E52","v":0}]
[50,null,null,0,null,{"$f":"Фасады!$D53*Фасады!$E53","v":0}]
[51,null,null,0,null,{"$f":"Фасады!$D54*Фасады!$E54","v":0}]
[52,null,null,0,null,{"$f":"Фасады!$D55*Фасады!$E55","v":0}]
[53,null,null,0,null,{"$f":"Фасады!$D56*Фасады!$E56","v":0}]
[54,null,null,0,null,{"$f":"Фасады!$D57*Фасады!$E57","v":0}]
[55,null,null,0,null,{"$f":"Фасады!$D58*Фасады!$E58","v":0}]
[56,null,null,0,null,{"$f":"Фасады!$D59*Фасады!$E59","v":0}]
[57,null,null,0,null,{"$f":"Фасады!$D60*Фасады!$E60","v":0}]

{"sheet":"Столешницы","index":2,"n_rows":18,"n_cols":7,"rows_kept":18,"cut":false,"hidden":false,"merged":[]}
[]
[]
[null,"Наименование","Производитель","Кол-во шт","Цена за шт","Стоимость","Выбор +"]
[null,"Столешница          3050 на 600","Россия 38 мм",1,4500,{"$f":"Столешницы!$D4*Столешницы!$E4","v":4500},"+"]
[null,"Столешница","Италия 28 мм",1,5000,{"$f":"Столешницы!$D5*Столешницы!$E5","v":5000},"+"]
[null,"Столешница","Италия 38 мм",1,6000,{"$f":"Столешницы!$D6*Столешницы!$E6","v":6000},"+"]
[null,null,null,null,null,{"$f":"Столешницы!$D7*Столешницы!$E7","v":0}]
[null,null,null,null,null,{"$f":"Столешницы!$D8*Столешницы!$E8","v":0}]
[null,null,null,null,null,{"$f":"Столешницы!$D9*Столешницы!$E9","v":0}]
[null,null,null,null,null,{"$f":"Столешницы!$D10*Столешницы!$E10","v":0}]
[null,null,null,null,null,{"$f":"Столешницы!$D11*Столешницы!$E11","v":0}]
[null,null,null,null,null,{"$f":"Столешницы!$D12*Столешницы!$E12","v":0}]
[null,null,null,null,null,{"$f":"Столешницы!$D13*Столешницы!$E13","v":0}]
[null,null,null,null,null,{"$f":"Столешницы!$D14*Столешницы!$E14","v":0}]
[null,null,null,null,null,{"$f":"Столешницы!$D15*Столешницы!$E15","v":0}]
[null,null,null,null,null,{"$f":"Столешницы!$D16*Столешницы!$E16","v":0}]
[null,null,null,null,null,{"$f":"Столешницы!$D17*Столешницы!$E17","v":0}]
[null,null,null,null,null,{"$f":"Столешницы!$D18*Столешницы!$E18","v":0}]

{"sheet":"Фурнитура","index":3,"n_rows":18,"n_cols":7,"rows_kept":18,"cut":false,"hidden":false,"merged":[]}
[]
[]
[null,"Наименование","Производитель","Размер. Шт","Цена за шт","Стоимость","Выбор +"]
[null,"ручка","Россия 96 мм",1,100,{"$f":"Фурнитура!$D4*Фурнитура!$E4","v":100},"+"]
[null,"петля","Италия 90 гр",1,200,{"$f":"Фурнитура!$D5*Фурнитура!$E5","v":200},"+"]
[null,"корзинка","Италия 300 мм",1,2000,{"$f":"Фурнитура!$D6*Фурнитура!$E6","v":2000},"+"]
[null,null,null,null,null,{"$f":"Фурнитура!$D7*Фурнитура!$E7","v":0}]
[null,null,null,null,null,{"$f":"Фурнитура!$D8*Фурнитура!$E8","v":0}]
[null,null,null,null,null,{"$f":"Фурнитура!$D9*Фурнитура!$E9","v":0}]
[null,null,null,null,null,{"$f":"Фурнитура!$D10*Фурнитура!$E10","v":0}]
[null,null,null,null,null,{"$f":"Фурнитура!$D11*Фурнитура!$E11","v":0}]
[null,null,null,null,null,{"$f":"Фурнитура!$D12*Фурнитура!$E12","v":0}]
[null,null,null,null,null,{"$f":"Фурнитура!$D13*Фурнитура!$E13","v":0}]
[null,null,null,null,null,{"$f":"Фурнитура!$D14*Фурнитура!$E14","v":0}]
[null,null,null,null,null,{"$f":"Фурнитура!$D15*Фурнитура!$E15","v":0}]
[null,null,null,null,null,{"$f":"Фурнитура!$D16*Фурнитура!$E16","v":0}]
[null,null,null,null,null,{"$f":"Фурнитура!$D17*Фурнитура!$E17","v":0}]
[null,null,null,null,null,{"$f":"Фурнитура!$D18*Фурнитура!$E18","v":0}]

{"sheet":"Спецификация","index":4,"n_rows":53,"n_cols":7,"rows_kept":53,"cut":false,"hidden":false,"merged":[[51,1,51,2],[0,4,0,5],[52,4,52,5]]}
[null,"ИП Григорович А.В  Cntrl+ф",null,null,"   студия мебели \"SpektrHaus\"                т.55-22-85 пр-т Дзержинского 43                  "]
[null,"Спецификация","Приложение к договору №_____"]
["№","Наименование","Производитель","Размер","Цена","Стоимость"]
[1,"ДСП кухня","Egger (Австрия)16 мм",0,1700,0,"ДСП"]
[2,"ДСП кухня","Kronospan (Россия)16 мм",0,1700,0,"ДСП"]
[3,"ДСП кухня","Lamarty (Польша)16 мм",0,1700,0,"ДСП"]
[4,"ДСП кухня","Шексна  (Россия) 16 мм",0,1500,0,"ДСП"]
[5,"ДСП кухня","Монза Россия 16 мм",0,1500,0,"ДСП"]
[6,"Фасад МДФ пленка","ЭКМИ Россия металлик",5,4000,20000,"Фасады"]
[7,"Фасад МДФ пленка","Италия",1,5000,5000,"Фасады"]
[8,"Фасад МДФ эмаль","ORACAL Италия матовая",0,5000,0,"Фасады"]
[9,"Фасад МДФ эмаль","ORACAL Италия глянцевая",0,5500,0,"Фасады"]
[10,"Фасад МДФ эмаль","ORACAL Италия металлик",0,5500,0,"Фасады"]
[11,"Фасад МДФ пластик в ПВХ кромке","ARPA Италия матовый",0,6000,0,"Фасады"]
[12,"Столешница          3050 на 600","Россия 38 мм",1,4500,4500,"Столешницы"]
[13,"Столешница","Италия 28 мм",1,5000,5000,"Столешницы"]
[14,"Столешница","Италия 38 мм",1,6000,6000,"Столешницы"]
[15,"ручка","Россия 96 мм",1,100,100,"Фурнитура"]
[16,"петля","Италия 90 гр",1,200,200,"Фурнитура"]
[17,"корзинка","Италия 300 мм",1,2000,2000,"Фурнитура"]
[18]
[19]
[20]
[21]
[22]
[23]
[24]
[25]
[26]
[27]
[28]
[29]
[30]
[31]
[32]
[33]
[34]
[35]
[36]
[37]
[38]
[39]
[40]
[41,"Cтоимость изделия",null,null,null,{"$f":"SUM($F$4:$F$43)","v":42800}]
[42,"Демонтаж"]
[43,"Монтаж",null,0.1,null,{"$f":"(F44*D46)","v":4280}]
[44,"Доставка"]
[45,"Подъем",null,5,100,{"$f":"D48*E48","v":500}]
[46,"Стоимость доп. услуг",null,null,null,{"$f":"SUM($F$45:$F$48)","v":4780}]
[47,"Итог:",null,null,null,{"$f":"F44+F49","v":47580}]
[]
[null,"Со спецификацией ознакомлен и согласен",null,{"$f":"TODAY()","v":"2015-03-21"}]
[null,null,null,"дата","подпись/расшифровка"]